bitfinex-derivatives/quotes_SOLF0:USTF0_20260310
["timestamp","ask_amount","ask_price","bid_price","bid_amount"]
[1773107114484,4.47848429,85.208,85.161,4.65366789]
[1773107114688,4.4786294,85.207,85.163,4.65366789]
[1773107114885,3.25891142,85.209,85.163,4.65366789]
[1773107115187,4.47871496,85.208,85.163,4.65366789]
[1773107115378,3.25891142,85.209,85.163,4.65366789]
[1773107115582,4.47875514,85.208,85.163,4.65366789]
[1773107115786,3.25891142,85.209,85.163,4.65366789]
[1773107116288,4.47770412,85.208,85.163,4.65366789]
[1773107116586,3.25891142,85.209,85.163,4.65366789]
[1773107116786,4.47789456,85.208,85.163,4.65366789]
[1773107117087,10.561,85.215,85.171,4.65366789]
[1773107117287,4.47850949,85.214,85.171,4.65366789]
[1773107117582,10.561,85.215,85.171,4.65366789]
[1773107117583,4.47850949,85.213,85.171,4.65366789]
[1773107117885,4.47850949,85.212,85.171,4.65366789]
[1773107118085,10.561,85.215,85.171,4.65366789]
[1773107118086,4.47850949,85.211,85.171,4.65366789]
[1773107118288,4.47850949,85.21,85.171,4.65366789]
[1773107118486,4.47850949,85.209,85.171,4.65366789]
[1773107118688,4.47789219,85.208,85.171,4.65366789]
[1773107118887,10.561,85.215,85.171,4.65366789]
[1773107119083,3.52539216,85.21,85.171,4.65366789]
[1773107119289,4.47789215,85.209,85.171,4.65366789]
[1773107119487,4.47789215,85.208,85.171,4.65366789]
[1773107119687,3.39017828,85.209,85.171,4.65366789]
[1773107119888,4.47791471,85.208,85.171,4.65366789]
[1773107120089,3.39017828,85.209,85.171,4.65366789]
[1773107120288,4.47808099,85.208,85.171,4.65366789]
[1773107120488,4.47808099,85.207,85.171,4.65366789]
[1773107120691,4.47808099,85.206,85.171,4.65366789]
[1773107120886,4.47808099,85.205,85.171,4.65366789]
[1773107121088,4.47808099,85.204,85.171,4.65366789]
[1773107121390,4.47808099,85.203,85.171,4.65366789]
[1773107121595,4.47808099,85.202,85.171,4.65366789]
[1773107121790,3.39017828,85.209,85.171,4.65366789]
[1773107121988,4.47790704,85.208,85.171,4.65366789]
[1773107122189,4.47790704,85.207,85.171,4.65366789]
[1773107122389,4.47790704,85.206,85.171,4.65366789]
[1773107122591,4.47790704,85.205,85.171,4.65366789]
[1773107122792,4.47790704,85.204,85.171,4.65366789]
[1773107123091,4.47790704,85.203,85.171,4.65366789]
[1773107123292,4.47790704,85.202,85.171,4.65366789]
[1773107123493,3.39017828,85.209,85.171,4.65366789]
[1773107123686,4.47793475,85.208,85.171,4.65366789]
[1773107123883,4.47793475,85.207,85.171,4.65366789]
[1773107124088,4.47793475,85.206,85.171,4.65366789]
[1773107124289,4.47793475,85.205,85.171,4.65366789]
[1773107124485,4.47793475,85.204,85.171,4.65366789]
[1773107124695,4.47793475,85.203,85.171,4.65366789]
[1773107124892,4.47793475,85.202,85.171,4.65366789]
[1773107125098,3.39017828,85.209,85.171,4.65366789]
[1773107125396,4.48006535,85.208,85.171,4.65366789]
[1773107125601,4.48006535,85.207,85.171,4.65366789]
[1773107125795,4.48006535,85.206,85.171,4.65366789]
[1773107125990,4.48006535,85.205,85.171,4.65366789]
[1773107126292,4.48006535,85.204,85.171,4.65366789]
[1773107126498,4.48006535,85.203,85.171,4.65366789]
[1773107126797,4.48006535,85.202,85.171,4.65366789]
[1773107126997,3.51664988,85.215,85.171,4.65366789]
[1773107127198,7.99650893,85.214,85.171,4.65366789]
[1773107127398,4.47985905,85.213,85.171,4.65366789]
[1773107127598,4.47985905,85.212,85.171,4.65366789]
[1773107127800,4.47985905,85.211,85.171,4.65366789]
[1773107128100,4.47985905,85.21,85.171,4.65366789]
[1773107128301,4.47985905,85.209,85.176,10.565]
[1773107128494,4.47985905,85.208,85.176,10.565]
[1773107128694,4.47985905,85.207,85.171,4.65366789]
[1773107128894,4.47985905,85.206,85.171,4.65366789]
[1773107129111,4.47985905,85.205,85.171,4.65366789]
[1773107129393,4.47985905,85.204,85.171,4.65366789]
[1773107129592,4.47985905,85.203,85.171,4.65366789]
[1773107129800,4.47985905,85.202,85.171,4.65366789]
[1773107130006,3.51664988,85.214,85.171,4.65366789]
[1773107130197,3.51226936,85.212,85.171,4.65366789]
[1773107130500,4.47853449,85.211,85.171,4.65366789]
[1773107130695,4.47853449,85.21,85.171,4.65366789]
[1773107130895,4.47853449,85.209,85.171,4.65366789]
[1773107131098,4.47853449,85.208,85.171,4.65366789]
[1773107131296,4.47853449,85.207,85.171,4.65366789]
[1773107131494,4.47853449,85.206,85.171,4.65366789]
[1773107131695,4.47853449,85.205,85.171,4.65366789]
[1773107131898,4.47853449,85.204,85.171,4.65366789]
[1773107132097,4.47853449,85.203,85.171,4.65366789]
[1773107132396,4.4807555,85.202,85.171,4.65366789]
[1773107132597,4.4807555,85.201,85.171,4.65366789]
[1773107132797,3.51226936,85.212,85.171,4.65366789]
[1773107133099,4.4807555,85.211,85.171,4.65366789]
[1773107133401,4.4807555,85.21,85.171,4.65366789]
[1773107133591,4.4807555,85.209,85.171,4.65366789]
[1773107133894,4.4807555,85.208,85.171,4.65366789]
[1773107134094,4.4807555,85.207,85.171,4.65366789]
[1773107134292,4.4807555,85.206,85.171,4.65366789]
[1773107134601,4.4807555,85.205,85.171,4.65366789]
[1773107134799,4.4807555,85.204,85.171,4.65366789]
[1773107135098,4.4807555,85.203,85.171,4.65366789]
[1773107135294,4.4807555,85.202,85.171,4.65366789]
[1773107135496,4.4807555,85.201,85.171,4.65366789]
[1773107135698,4.4807555,85.2,85.171,4.65366789]
[1773107136002,3.51226936,85.212,85.171,4.65366789]
[1773107136203,4.48194676,85.211,85.171,4.65366789]
[1773107136401,4.48194676,85.21,85.171,4.65366789]
[1773107136609,4.48194676,85.209,85.171,4.65366789]
[1773107136802,4.48194676,85.208,85.171,4.65366789]
[1773107137005,4.48194676,85.207,85.171,4.65366789]
[1773107137204,4.48194676,85.206,85.171,4.65366789]
[1773107137399,4.48194676,85.205,85.171,4.65366789]
[1773107137699,4.48194676,85.204,85.171,4.65366789]
[1773107138003,4.48194676,85.203,85.171,4.65366789]
[1773107138201,3.51226936,85.212,85.171,4.65366789]
[1773107138202,4.48194676,85.202,85.171,4.65366789]
[1773107138403,4.48194676,85.201,85.171,4.65366789]
[1773107138602,4.48194676,85.2,85.171,4.65366789]
[1773107138899,4.48194676,85.199,85.171,4.65366789]
[1773107139100,3.51226936,85.212,85.171,4.65366789]
[1773107139299,8.13677828,85.211,85.171,4.65366789]
[1773107139500,8.0275107,85.21,85.171,4.65366789]
[1773107139701,4.48415388,85.209,85.171,4.65366789]
[1773107139892,4.48415388,85.208,85.171,4.65366789]
[1773107140094,4.48415388,85.207,85.171,4.65366789]
[1773107140304,4.48415388,85.206,85.171,4.65366789]
[1773107140601,4.48415388,85.205,85.171,4.65366789]
[1773107140803,4.48415388,85.204,85.171,4.65366789]
[1773107141106,4.48415388,85.203,85.171,4.65366789]
[1773107141301,3.54335682,85.21,85.171,4.65366789]
[1773107141500,4.48382552,85.209,85.171,4.65366789]
[1773107141700,4.50669821,85.208,85.171,4.65366789]
[1773107141900,4.50669821,85.207,85.171,4.65366789]
[1773107142212,4.50669821,85.206,85.171,4.65366789]
[1773107142404,4.50669821,85.205,85.171,4.65366789]
[1773107142606,4.50669821,85.204,85.173,5.1228906]
[1773107142805,4.50669821,85.203,85.173,5.1228906]
[1773107143008,4.50669821,85.202,85.173,5.1228906]
[1773107143195,4.50669821,85.201,85.173,5.1228906]
[1773107143399,3.54335682,85.21,85.173,5.1228906]
[1773107143603,4.50752924,85.209,85.173,5.1228906]
[1773107143803,4.50752924,85.208,85.173,5.1228906]
[1773107143997,4.50752924,85.207,85.173,5.1228906]
[1773107144207,3.54335682,85.21,85.173,5.1228906]
[1773107144208,4.50752924,85.206,85.173,5.1228906]
[1773107144409,3.59089745,85.204,85.173,5.1228906]
[1773107144704,4.50752924,85.203,85.173,5.1228906]
[1773107145003,4.50752924,85.202,85.173,5.1228906]
[1773107145203,3.60373752,85.2,85.165,10.567]
[1773107145400,4.50752924,85.199,85.165,10.567]
[1773107145603,4.50752924,85.198,85.165,10.567]
[1773107145907,4.50752924,85.197,85.165,10.567]
[1773107146106,4.50752924,85.196,85.165,10.567]
[1773107146306,4.50752924,85.195,85.165,10.567]
[1773107146507,4.50752924,85.194,85.165,10.567]
[1773107146704,4.50752924,85.193,85.165,10.567]
[1773107146899,4.50752924,85.193,85.147,21.94086622]
[1773107146900,14.19612321,85.183,85.147,27.06375682]
[1773107147206,8.1406261,85.182,85.147,5.1228906]
[1773107147401,4.50850289,85.181,85.147,5.1228906]
[1773107147607,4.50850289,85.18,85.147,5.1228906]
[1773107147801,3.63212321,85.182,85.147,5.1228906]
[1773107148002,4.50791691,85.181,85.147,5.1228906]
[1773107148198,4.50791691,85.18,85.147,5.1228906]
[1773107148409,3.63212321,85.182,85.147,5.1228906]
[1773107148609,4.50763645,85.181,85.147,5.1228906]
[1773107148810,4.50763645,85.18,85.147,5.1228906]
[1773107149110,3.63212321,85.182,85.147,5.1228906]
[1773107149303,4.50704575,85.181,85.147,5.1228906]
[1773107149501,3.63212321,85.182,85.147,5.1228906]
[1773107149703,4.50781172,85.181,85.147,5.1228906]
[1773107149904,3.63212321,85.182,85.147,5.1228906]
[1773107150105,4.50784729,85.181,85.147,5.1228906]
[1773107150414,4.50774617,85.18,85.151,4.86559067]
[1773107150602,3.61719572,85.192,85.151,4.86559067]
[1773107150805,4.50773424,85.191,85.151,4.86559067]
[1773107151008,4.50773424,85.19,85.151,4.86559067]
[1773107151208,4.50773424,85.189,85.151,4.86559067]
[1773107151508,4.50773424,85.188,85.152,4.86559067]
[1773107151814,10.563,85.198,85.152,4.86559067]
[1773107152112,4.50853919,85.197,85.152,4.86559067]
[1773107152307,10.563,85.198,85.152,4.86559067]
[1773107152308,4.50861745,85.196,85.153,10.568]
[1773107152511,4.50861745,85.195,85.154,4.86559067]
[1773107152818,4.50861745,85.194,85.154,4.86559067]
[1773107153012,4.50861745,85.193,85.154,4.86559067]
[1773107153307,4.50861745,85.192,85.154,4.86559067]
[1773107153612,10.563,85.198,85.154,4.86559067]
[1773107153613,4.50861745,85.191,85.154,4.86559067]
[1773107153811,4.50861745,85.19,85.154,4.86559067]
[1773107154013,4.50861745,85.189,85.156,4.86559067]
[1773107154313,4.50861745,85.188,85.156,4.86559067]
[1773107154513,4.50861745,85.187,85.156,4.86559067]
[1773107154712,4.50861745,85.186,85.156,4.86559067]
[1773107155013,10.563,85.198,85.156,4.86559067]
[1773107155208,4.50984904,85.197,85.16,4.86559067]
[1773107155414,4.50984904,85.196,85.16,4.86559067]
[1773107155615,4.50985885,85.195,85.16,4.86559067]
[1773107155814,4.50985885,85.194,85.16,4.86559067]
[1773107156015,4.50985885,85.193,85.16,4.86559067]
[1773107156215,4.50985885,85.192,85.16,4.86559067]
[1773107156415,4.50985885,85.191,85.16,4.86559067]
[1773107156615,4.50985885,85.19,85.16,4.86559067]
[1773107156816,4.50985885,85.189,85.16,4.86559067]
[1773107157014,4.50985885,85.188,85.16,4.86559067]
[1773107157316,4.50985885,85.187,85.16,4.86559067]
[1773107157515,4.50985885,85.186,85.16,4.86559067]
[1773107157815,4.50975118,85.185,85.16,4.86559067]
[1773107158014,3.69934531,85.2,85.16,4.86559067]
[1773107158210,8.20909607,85.199,85.16,4.86559067]
[1773107158410,4.50975076,85.198,85.16,4.86559067]
[1773107158613,4.50975076,85.197,85.16,4.86559067]
[1773107158813,4.50975076,85.196,85.16,4.86559067]
[1773107159118,4.50975076,85.195,85.16,4.86559067]
[1773107159316,4.50975076,85.194,85.16,4.86559067]
[1773107159511,4.50975076,85.193,85.16,4.86559067]
[1773107159807,4.50975076,85.192,85.16,4.86559067]
[1773107160010,4.50975076,85.191,85.162,4.86559067]
[1773107160207,4.50975076,85.19,85.162,4.86559067]
[1773107160409,4.50975076,85.189,85.162,4.86559067]
[1773107160613,4.50975076,85.188,85.162,4.86559067]
[1773107160912,4.50975076,85.187,85.162,4.86559067]
[1773107161117,3.73140525,85.213,85.165,4.86559067]
[1773107161311,4.50958455,85.212,85.171,4.86559067]
[1773107161515,3.73140525,85.213,85.171,4.86559067]
[1773107163316,4.89817344,85.211,85.171,4.86559067]
[1773107165320,4.89817344,85.211,85.177,5.06868871]
[1773107167922,5.08585597,85.209,85.177,5.06868871]
[1773107168623,5.08585597,85.189,85.146,5.06868871]
[1773107170125,5.08585597,85.215,85.161,5.06868871]
[1773107171421,5.08585597,85.21,85.162,5.06868871]
[1773107172323,15.64685597,85.209,85.162,5.06868871]
[1773107172821,15.64685597,85.209,85.134,29.25448829]
[1773107172822,17.577,85.239,85.201,5.06868871]
[1773107173024,5.08585597,85.251,85.22,3.52611915]
[1773107173225,5.08585597,85.263,85.23,3.52611915]
[1773107173426,5.08585597,85.279,85.24,3.52611915]
[1773107175434,5.08585597,85.279,85.24,8.59480786]
[1773107175732,5.08585597,85.279,85.241,5.06868871]
[1773107177730,5.08585597,85.29,85.243,5.06868871]
[1773107178233,5.08585597,85.287,85.243,5.06868871]
[1773107179437,10.552,85.285,85.243,5.06868871]
[1773107179837,5.08585597,85.284,85.243,5.06868871]
[1773107181928,8.43933155,85.332,85.191,21.94086622]
[1773107181929,5.08585597,85.297,85.251,5.06868871]
[1773107182238,5.08585597,85.307,85.261,5.06868871]
[1773107184540,5.08585597,85.307,85.27,8.59480786]
[1773107184933,8.61197512,85.32,85.271,5.06868871]
[1773107185139,5.08585597,85.317,85.271,5.06868871]
[1773107186038,5.08585597,85.289,85.24,8.59480786]
[1773107186742,5.08585597,85.289,85.24,5.06868871]
[1773107187237,5.08585597,85.285,85.24,5.06868871]
[1773107187443,5.08585597,85.279,85.23,3.52611915]
[1773107187638,5.08585597,85.279,85.23,3.52041163]
[1773107187845,5.08585597,85.279,85.23,8.58910034]
[1773107188443,15.63885597,85.278,85.231,5.06868871]
[1773107188840,5.08585597,85.277,85.231,5.06868871]
[1773107189340,10.553,85.278,85.231,5.06868871]
[1773107189341,3.52041163,85.28,85.231,5.06868871]
[1773107189539,5.08585597,85.305,85.251,5.06868871]
[1773107190444,5.08585597,85.305,85.261,5.06868871]
[1773107190745,5.08585597,85.319,85.271,5.06868871]
[1773107191444,5.08585597,85.315,85.26,5.06868871]
[1773107191645,35.24,85.355,85.26,5.06868871]
[1773107191646,5.08585597,85.309,85.26,5.06868871]
[1773107192142,5.08585597,85.309,85.261,5.06868871]
[1773107192338,5.08585597,85.307,85.261,5.06868871]
[1773107192545,8.6062676,85.32,85.271,5.06868871]
[1773107193144,5.08585597,85.319,85.271,5.06868871]
[1773107193445,5.18483135,85.318,85.271,5.06868871]
[1773107193944,5.18483135,85.318,85.27,3.52041163]
[1773107193945,5.18483135,85.318,85.273,5.14538346]
[1773107194340,5.18483135,85.318,85.213,21.94086622]
[1773107194341,5.18483135,85.332,85.281,5.14538346]
[1773107194545,3.52041163,85.33,85.281,5.14538346]
[1773107194741,5.18483135,85.329,85.281,5.14538346]
[1773107195346,5.18483135,85.328,85.281,5.14538346]
[1773107196138,5.18483135,85.317,85.27,3.52041163]
[1773107196341,5.18483135,85.309,85.26,3.52041163]
[1773107196546,5.18483135,85.309,85.255,5.14538346]
[1773107196743,5.18483135,85.299,85.245,5.14538346]
[1773107197041,3.52041163,85.29,85.245,5.14538346]
[1773107197438,3.52041163,85.28,85.245,5.14538346]
[1773107199039,5.18483135,85.276,85.228,5.14538346]
[1773107199249,5.18483135,85.269,85.22,3.52041163]
[1773107199448,3.52041163,85.26,85.214,5.14538346]
[1773107200445,3.52041163,85.26,85.221,10.56]
[1773107200842,3.52041163,85.26,85.214,5.14538346]
[1773107201242,3.52041163,85.26,85.215,10.56]
[1773107201839,10.554,85.265,85.215,10.56]
[1773107202142,15.73883135,85.265,85.215,10.56]
[1773107202348,5.18483135,85.264,85.215,10.56]
[1773107202543,5.18483135,85.264,85.219,5.14538346]
[1773107202748,10.553,85.274,85.177,35.24]
[1773107202749,3.52041163,85.27,85.221,5.14538346]
[1773107202941,5.18483135,85.273,85.221,5.14538346]
[1773107203138,5.18483135,85.269,85.221,5.14538346]
[1773107208849,5.18483135,85.266,85.221,5.14538346]
[1773107209550,5.18483135,85.264,85.221,5.14538346]
[1773107211351,10.555,85.263,85.221,5.14538346]
[1773107212452,5.18483135,85.262,85.221,5.14538346]
[1773107212654,5.18483135,85.259,85.215,10.56]
[1773107212949,5.18483135,85.259,85.209,5.14538346]
[1773107214349,5.59335202,85.258,85.21,10.561]
[1773107214855,5.59335202,85.258,85.21,14.08141163]
[1773107216145,5.59335202,85.254,85.21,28.51586413]
[1773107216750,5.59335202,85.254,85.21,24.9954525]
[1773107217144,5.59335202,85.254,85.214,14.4344525]
[1773107218851,5.59335202,85.249,85.21,14.4344525]
[1773107219246,5.59335202,85.249,85.209,14.4344525]
[1773107220348,5.59335202,85.248,85.209,14.4344525]
[1773107221054,5.59335202,85.248,85.208,10.561]
[1773107221252,5.59335202,85.248,85.208,16.13959329]
[1773107222550,5.59335202,85.248,85.209,5.57859329]
[1773107223356,3.52041163,85.27,85.221,5.41436297]
[1773107223556,5.22875562,85.274,85.221,5.41436297]
[1773107223753,5.22875562,85.274,85.231,5.41436297]
[1773107225451,10.553,85.272,85.231,5.41436297]
[1773107226956,5.22875562,85.265,85.222,10.56]
[1773107227352,8.74916725,85.26,85.219,5.41436297]
[1773107227559,10.555,85.258,85.219,5.41436297]
[1773107229262,5.22875562,85.249,85.213,14.4344525]
[1773107229559,5.22875562,85.249,85.202,5.41436297]
[1773107229758,5.22875562,85.249,85.206,5.41436297]
[1773107230263,5.22875562,85.249,85.206,19.84881547]
[1773107230562,5.22875562,85.249,85.207,5.41436297]
[1773107231259,3.52041163,85.27,85.217,5.41436297]
[1773107231460,3.52041163,85.27,85.221,5.41436297]
[1773107231765,8.74916725,85.27,85.221,5.41436297]
[1773107231960,5.22875562,85.269,85.221,5.41436297]
[1773107232461,5.22875562,85.259,85.213,10.561]
[1773107232862,5.22875562,85.259,85.213,15.97536297]
[1773107233365,10.555,85.258,85.213,15.97536297]
[1773107235065,10.555,85.258,85.214,5.41436297]
[1773107237766,15.78375562,85.258,85.214,5.41436297]
[1773107237961,10.555,85.256,85.214,5.41436297]
[1773107238569,5.22875562,85.27,85.226,5.41436297]
[1773107238770,5.22875562,85.269,85.226,5.41436297]
[1773107238969,3.52041163,85.26,85.226,5.41436297]
[1773107239172,5.22875562,85.257,85.219,14.4344525]
[1773107239469,5.22875562,85.257,85.215,14.4344525]
[1773107240169,5.22875562,85.257,85.217,14.4344525]
[1773107240370,15.78475562,85.255,85.217,14.4344525]
[1773107241067,15.78475562,85.255,85.2,3.52041163]
[1773107241068,5.22875562,85.239,85.21,14.4344525]
[1773107241273,5.22875562,85.239,85.208,14.4344525]
[1773107241469,5.22875562,85.239,85.209,14.4344525]
[1773107242173,5.22875562,85.239,85.211,14.4344525]
[1773107242472,15.78675562,85.239,85.211,14.4344525]
[1773107243472,10.556,85.249,85.214,14.4344525]
[1773107243773,15.78475562,85.249,85.213,19.84881547]
[1773107244269,10.557,85.246,85.213,14.4344525]
[1773107244573,15.78575562,85.246,85.212,14.4344525]
[1773107244969,15.78575562,85.246,85.214,14.4344525]
[1773107245168,5.22875562,85.245,85.214,14.4344525]
[1773107247074,10.557,85.243,85.214,14.4344525]
[1773107247373,3.52041163,85.24,85.213,14.4344525]
[1773107248377,10.558,85.238,85.213,14.4344525]
[1773107250371,10.558,85.238,85.211,14.4344525]
[1773107250977,10.558,85.238,85.208,14.4344525]
[1773107251174,10.558,85.238,85.207,14.4344525]
[1773107251479,10.558,85.238,85.203,14.4344525]
[1773107253373,5.22875562,85.244,85.204,5.23488351]
[1773107254084,5.22875562,85.244,85.205,5.23488351]
[1773107254980,5.22875562,85.244,85.211,14.4344525]
[1773107255183,10.557,85.243,85.21,14.4344525]
[1773107255375,5.68787764,85.242,85.21,14.4344525]
[1773107255574,3.52351365,85.24,85.21,14.4344525]
[1773107256275,3.52351365,85.24,85.209,14.4344525]
[1773107256479,10.557,85.241,85.209,14.4344525]
[1773107256786,3.52351365,85.24,85.21,14.4344525]
[1773107256977,10.557,85.241,85.209,14.4344525]
[1773107257786,10.557,85.241,85.205,5.23488351]
[1773107257787,10.557,85.241,85.21,14.4344525]
[1773107257976,10.557,85.241,85.209,14.4344525]
[1773107258380,5.68787764,85.24,85.209,14.4344525]
[1773107259188,5.68787764,85.237,85.207,14.4344525]
[1773107259582,5.68787764,85.237,85.208,14.4344525]
[1773107259878,5.68787764,85.237,85.209,14.4344525]
[1773107260281,5.68787764,85.237,85.207,14.4344525]
[1773107260487,10.558,85.234,85.207,14.4344525]
[1773107260690,5.68787764,85.237,85.194,15.79788351]
[1773107260691,3.52351365,85.23,85.194,5.23488351]
[1773107260890,5.68787764,85.237,85.194,5.23488351]
[1773107261589,9.21139129,85.25,85.201,5.23488351]
[1773107261788,5.68787764,85.249,85.207,5.23488351]
[1773107263490,10.557,85.243,85.207,5.23488351]
[1773107266688,16.24487764,85.243,85.207,5.23488351]
[1773107269800,5.58916197,85.249,85.207,5.23488351]
[1773107270800,5.58916197,85.241,85.207,5.23488351]
[1773107271401,3.52351365,85.26,85.211,5.61071569]
[1773107271602,3.52351365,85.28,85.221,5.61071569]
[1773107271798,5.58916197,85.279,85.221,5.61071569]
[1773107272900,10.554,85.268,85.223,5.61071569]
[1773107277408,16.14316197,85.268,85.223,5.61071569]
[1773107281005,5.58916197,85.267,85.223,5.61071569]
[1773107282007,10.553,85.275,85.231,5.61071569]
[1773107282507,5.58916197,85.278,85.231,5.61071569]
[1773107283404,10.552,85.283,85.241,5.61071569]
[1773107285405,16.01197087,85.281,85.241,5.61071569]
[1773107285607,5.45997087,85.28,85.241,5.61071569]
[1773107286712,5.45997087,85.28,85.242,5.51176972]
[1773107287511,10.549,85.305,85.261,5.51176972]
[1773107289411,5.45997087,85.302,85.261,5.51176972]
[1773107290215,10.548,85.313,85.262,5.51176972]
[1773107290411,5.45997087,85.312,85.27,9.03528337]
[1773107290910,5.45997087,85.308,85.27,5.51176972]
[1773107291311,5.45997087,85.308,85.27,9.03528337]
[1773107291514,4.52953676,85.307,85.27,9.03528337]
[1773107291714,4.52953676,85.306,85.27,9.03528337]
[1773107291914,4.52953676,85.305,85.27,9.03528337]
[1773107292115,5.45997087,85.307,85.27,9.03528337]
[1773107292321,10.549,85.305,85.27,9.03528337]
[1773107292521,10.549,85.305,85.271,5.51176972]
[1773107294621,5.45997087,85.302,85.27,3.52351365]
[1773107294821,5.45997087,85.302,85.26,9.03528337]
[1773107295020,5.45997087,85.302,85.261,5.51176972]
[1773107295923,5.45997087,85.329,85.271,5.51176972]
[1773107296124,5.45997087,85.319,85.271,5.51176972]
[1773107296314,5.45997087,85.317,85.271,5.51176972]
[1773107296519,4.52211285,85.316,85.271,5.51176972]
[1773107296712,10.549,85.304,85.271,5.51176972]
[1773107297425,10.55,85.302,85.271,5.51176972]
[1773107297724,5.45997087,85.301,85.26,9.03528337]
[1773107298022,5.45997087,85.301,85.261,5.51176972]
[1773107300722,10.549,85.31,85.271,5.51176972]
[1773107302127,10.549,85.31,85.28,3.52351365]
[1773107302723,5.35591119,85.308,85.232,5.51176972]
[1773107303030,1.83239754,85.285,85.241,5.51176972]
[1773107303229,1.83239754,85.31,85.261,5.51176972]
[1773107303525,1.83234862,85.308,85.261,5.51176972]
[1773107303730,6.36007358,85.307,85.261,5.51176972]
[1773107303929,4.51993082,85.306,85.261,5.51176972]
[1773107304229,4.52211411,85.305,85.261,5.51176972]
[1773107304429,1.84014276,85.307,85.261,5.51176972]
[1773107304626,4.52210558,85.306,85.261,5.51176972]
[1773107304928,4.52210558,85.305,85.261,5.51176972]
[1773107305129,1.84014276,85.307,85.261,5.51176972]
[1773107305328,10.549,85.305,85.261,5.51176972]
[1773107305929,10.548,85.314,85.271,5.51176972]
[1773107306120,2.06570393,85.319,85.281,5.51176972]
[1773107307232,3.52351365,85.33,85.281,5.51176972]
[1773107307432,2.06489341,85.344,85.291,5.51176972]
[1773107307736,2.06489341,85.342,85.291,5.51176972]
[1773107307928,2.07243904,85.34,85.291,5.51176972]
[1773107308129,2.07243904,85.338,85.291,5.51176972]
[1773107308324,10.546,85.334,85.291,5.51176972]
[1773107309434,10.545,85.343,85.301,5.51176972]
[1773107309733,4.52485613,85.342,85.301,5.51176972]
[1773107309937,4.52485613,85.341,85.301,5.51176972]
[1773107310230,1.99234899,85.349,85.301,5.51176972]
[1773107310532,10.545,85.34,85.301,5.51176972]
[1773107311126,1.95134937,85.359,85.311,5.51176972]
[1773107311331,4.52372569,85.358,85.321,5.51176972]
[1773107311533,4.52372569,85.357,85.321,5.51176972]
[1773107311730,10.542,85.365,85.321,5.51176972]
[1773107314345,10.543,85.36,85.321,5.51176972]
[1773107315639,35.18,85.399,85.3,3.51457172]
[1773107315640,1.70850569,85.349,85.3,3.51457172]
[1773107315843,1.70850569,85.339,85.295,5.55355569]
[1773107316343,10.544,85.346,85.301,5.55355569]
[1773107316644,10.544,85.346,85.3,3.51457172]
[1773107316645,1.70850569,85.355,85.311,5.55355569]
[1773107319356,10.543,85.354,85.311,5.55355569]
[1773107320844,10.544,85.35,85.311,5.55355569]
[1773107321045,1.51182316,85.349,85.311,5.55355569]
[1773107322058,10.545,85.34,85.301,5.55355569]
[1773107322245,1.45919553,85.339,85.301,5.55355569]
[1773107323147,3.51457172,85.34,85.301,5.55355569]
[1773107326146,10.545,85.338,85.301,5.55355569]
[1773107331954,10.546,85.336,85.301,5.55355569]
[1773107334859,10.545,85.344,85.301,5.55355569]
[1773107335059,4.5427211,85.343,85.301,5.55355569]
[1773107335260,10.545,85.344,85.301,5.55355569]
[1773107335460,4.54340299,85.343,85.301,5.55355569]
[1773107335655,10.545,85.344,85.301,5.55355569]
[1773107335857,4.54341924,85.343,85.301,5.55355569]
[1773107336157,10.545,85.344,85.301,5.55355569]
[1773107336354,4.5443128,85.343,85.303,4.94328535]
[1773107336555,4.5443128,85.342,85.303,4.94328535]
[1773107336758,10.545,85.344,85.303,4.94328535]
[1773107336951,10.545,85.344,85.29,3.51457172]
[1773107336952,4.54430849,85.343,85.305,4.94328535]
[1773107337156,4.54441001,85.342,85.305,4.94328535]
[1773107337460,1.00500786,85.348,85.305,4.94328535]
[1773107337655,3.51457172,85.34,85.305,4.94328535]
[1773107337856,4.54468747,85.339,85.305,4.94328535]
[1773107338060,4.54468747,85.338,85.305,4.94328535]
[1773107338254,4.54514275,85.337,85.305,4.94328535]
[1773107338463,0.8728298,85.339,85.305,4.94328535]
[1773107338663,4.54514153,85.338,85.305,4.94328535]
[1773107338861,4.54514153,85.337,85.305,4.94328535]
[1773107339157,0.8728298,85.339,85.305,4.94328535]
[1773107339361,4.54594543,85.338,85.305,4.94328535]
[1773107339661,4.54594543,85.337,85.305,4.94328535]
[1773107339862,0.8728298,85.339,85.305,4.94328535]
[1773107340063,4.54594544,85.338,85.305,4.94328535]
[1773107340368,4.54800532,85.337,85.305,4.94328535]
[1773107340558,4.54800532,85.336,85.305,4.94328535]
[1773107340857,0.8728298,85.339,85.305,4.94328535]
[1773107341063,4.55038043,85.338,85.305,4.94328535]
[1773107341261,4.55038043,85.337,85.305,4.94328535]
[1773107341462,4.55038043,85.336,85.305,4.94328535]
[1773107341656,4.55038043,85.335,85.305,4.94328535]
[1773107341853,0.8728298,85.339,85.305,4.94328535]
[1773107342160,4.55202819,85.338,85.305,4.94328535]